[Event "Titled Tuesday Blitz October 31 Early 2023"]
[White "Hayrapetyan, Hovik"]
[Black "Bao, Qilin"]
[WhiteFideId "13302639"]
[BlackFideId "8605750"]
[WhiteElo "2772"]
[BlackElo "2660"]
[Result "1-0"]
[Round "11"]
[TimeControl "180+1"]
[Date "2023.10.31"]
[WhiteClock "0:00:04"]
[BlackClock "0:00:03"]
[Board "31"]

1. d4 {[%clk 0:02:56]}  Nf6 {[%clk 0:02:59]} 2. c4 {[%clk 0:02:56]}  e6 {[%clk 0:02:59]} 3. Nc3 {[%clk 0:02:56]}  d5 {[%clk 0:02:58]} 4. Nf3 {[%clk 0:02:56]}  c5 {[%clk 0:02:58]} 5. cxd5 {[%clk 0:02:54]}  Nxd5 {[%clk 0:02:58]} 6. e4 {[%clk 0:02:54]}  Nxc3 {[%clk 0:02:58]} 7. bxc3 {[%clk 0:02:54]}  cxd4 {[%clk 0:02:59]} 8. cxd4 {[%clk 0:02:54]}  Bb4+ {[%clk 0:03:00]} 9. Bd2 {[%clk 0:02:54]}  Bxd2+ {[%clk 0:03:00]} 10. Qxd2 {[%clk 0:02:55]}  O-O {[%clk 0:03:01]} 11. Bc4 {[%clk 0:02:52]}  Nd7 {[%clk 0:03:00]} 12. O-O {[%clk 0:02:52]}  b6 {[%clk 0:03:01]} 13. Rfe1 {[%clk 0:02:52]}  Bb7 {[%clk 0:03:01]} 14. Rad1 {[%clk 0:02:52]}  Rc8 {[%clk 0:03:01]} 15. Bb3 {[%clk 0:02:53]}  Qc7 {[%clk 0:03:01]} 16. Re3 {[%clk 0:02:47]}  Nf6 {[%clk 0:02:53]} 17. Rde1 {[%clk 0:02:44]}  h6 {[%clk 0:02:50]} 18. Ne5 {[%clk 0:02:41]}  Rfd8 {[%clk 0:02:49]} 19. f4 {[%clk 0:02:16]}  Qd6 {[%clk 0:02:41]} 20. d5 {[%clk 0:02:09]}  exd5 {[%clk 0:02:36]} 21. Nxf7 {[%clk 0:02:04]}  Kxf7 {[%clk 0:01:54]} 22. e5 {[%clk 0:02:04]}  Qc5 {[%clk 0:01:45]} 23. exf6 {[%clk 0:02:03]}  gxf6 {[%clk 0:01:33]} 24. Qf2 {[%clk 0:01:53]}  Re8 {[%clk 0:01:29]} 25. Bd1 {[%clk 0:01:53]}  d4 {[%clk 0:01:18]} 26. Bb3+ {[%clk 0:01:48]}  Bd5 {[%clk 0:01:09]} 27. Re5 {[%clk 0:01:22]}  Rxe5 {[%clk 0:00:45]} 28. fxe5 {[%clk 0:01:23]}  Rc6 {[%clk 0:00:43]} 29. Qf5 {[%clk 0:01:05]}  d3+ {[%clk 0:00:43]} 30. Kh1 {[%clk 0:01:05]}  Bxb3 {[%clk 0:00:43]} 31. axb3 {[%clk 0:01:00]}  d2 {[%clk 0:00:38]} 32. Qd7+ {[%clk 0:01:00]}  Kg6 {[%clk 0:00:29]} 33. Qe8+ {[%clk 0:00:45]}  Kh7 {[%clk 0:00:20]} 34. Qf7+ {[%clk 0:00:36]}  Kh8 {[%clk 0:00:20]} 35. Qe8+ {[%clk 0:00:31]}  Kh7 {[%clk 0:00:20]} 36. Qd7+ {[%clk 0:00:31]}  Kg6 {[%clk 0:00:20]} 37. Qd3+ {[%clk 0:00:29]}  Kg7 {[%clk 0:00:13]} 38. exf6+ {[%clk 0:00:26]}  Rxf6 {[%clk 0:00:13]} 39. Qxd2 {[%clk 0:00:26]}  Qd6 {[%clk 0:00:11]} 40. Qe2 {[%clk 0:00:19]}  a5 {[%clk 0:00:11]} 41. Qg4+ {[%clk 0:00:19]}  Kh7 {[%clk 0:00:10]} 42. Qe4+ {[%clk 0:00:18]}  Kg7 {[%clk 0:00:10]} 43. h3 {[%clk 0:00:17]}  Qf4 {[%clk 0:00:09]} 44. Qb7+ {[%clk 0:00:17]}  Kg6 {[%clk 0:00:08]} 45. Re4 {[%clk 0:00:12]}  Qf1+ {[%clk 0:00:02]} 46. Kh2 {[%clk 0:00:13]}  h5 {[%clk 0:00:02]} 47. Qc8 {[%clk 0:00:09]}  Qf5 {[%clk 0:00:02]} 48. Qg8+ {[%clk 0:00:08]}  Kh6 {[%clk 0:00:03]} 49. Qh8+ {[%clk 0:00:08]}  Kg6 {[%clk 0:00:03]} 50. Qe8+ {[%clk 0:00:08]}  Kh6 {[%clk 0:00:04]} 51. Qh8+ {[%clk 0:00:03]}  Kg6 {[%clk 0:00:04]} 52. Qa8 {[%clk 0:00:02]}  Rf7 {[%clk 0:00:03]} 53. Re3 {[%clk 0:00:03]}  Qf4+ {[%clk 0:00:03]} 54. Rg3+ {[%clk 0:00:03]}  Kh6 {[%clk 0:00:04]} 55. Qh8+ {[%clk 0:00:02]}  Rh7 {[%clk 0:00:04]} 56. Qg8 {[%clk 0:00:02]}  Qf6 {[%clk 0:00:03]} 57. Qd5 {[%clk 0:00:02]}  Rg7 {[%clk 0:00:03]} 58. Qd2+ {[%clk 0:00:02]}  Kh7 {[%clk 0:00:03]} 59. Qd3+ {[%clk 0:00:03]}  Kh6 {[%clk 0:00:03]} 60. Qe3+ {[%clk 0:00:03]}  Kh7 {[%clk 0:00:04]} 61. Qe4+ {[%clk 0:00:03]}  Kh6 {[%clk 0:00:03]} 62. Rf3 {[%clk 0:00:04]}  Qd6+ {[%clk 0:00:03]} 63. Kg1 {[%clk 0:00:04]}  Qd1+ {[%clk 0:00:03]} 64. Rf1 {[%clk 0:00:04]}  Qd6 {[%clk 0:00:04]} 65. Qe3+ {[%clk 0:00:05]}  Kh7 {[%clk 0:00:04]} 66. Rf5 {[%clk 0:00:04]}  Qd1+ {[%clk 0:00:04]} 67. Kh2 {[%clk 0:00:04]}  Qd6+ {[%clk 0:00:04]} 68. Kh1 {[%clk 0:00:04]}  Qg6 {[%clk 0:00:05]} 69. Qf3 {[%clk 0:00:03]}  h4 {[%clk 0:00:05]} 70. Rh5+ {[%clk 0:00:03]}  Kg8 {[%clk 0:00:05]} 71. Qa8+ {[%clk 0:00:04]}  Kf7 {[%clk 0:00:05]} 72. Rxh4 {[%clk 0:00:03]}  Qg3 {[%clk 0:00:04]} 73. Qb7+ {[%clk 0:00:01]}  Kg8 {[%clk 0:00:05]} 74. Qc8+ {[%clk 0:00:02]}  Kf7 {[%clk 0:00:05]} 75. Qf5+ {[%clk 0:00:03]}  Kg8 {[%clk 0:00:05]} 76. Qd5+ {[%clk 0:00:03]}  Kf8 {[%clk 0:00:06]} 77. Rc4 {[%clk 0:00:02]}  Qb8 {[%clk 0:00:04]} 78. Qf5+ {[%clk 0:00:02]}  Ke8 {[%clk 0:00:04]} 79. Re4+ {[%clk 0:00:02]}  Kd8 {[%clk 0:00:04]} 80. Qf8+ {[%clk 0:00:02]}  Kc7 {[%clk 0:00:04]} 81. Qxg7+ {[%clk 0:00:03]}  Kc6 {[%clk 0:00:03]} 82. Qf6+ {[%clk 0:00:04]} 1-0


[Site "https://www.chess.com"]

[Event "Titled Tuesday Blitz October 31 Early 2023"]
[White "mind1mover"]
[Black "Ahmad, Khagan"]
[BlackFideId "13431552"]
[WhiteElo "2759"]
[BlackElo "2616"]
[Result "1-0"]
[Round "11"]
[TimeControl "180+1"]
[Date "2023.10.31"]
[WhiteClock "0:01:13"]
[BlackClock "0:00:45"]
[Board "32"]

1. Nf3 {[%clk 0:03:00]}  Nf6 {[%clk 0:02:55]} 2. b3 {[%clk 0:03:01]}  c5 {[%clk 0:02:54]} 3. Bb2 {[%clk 0:03:02]}  Nc6 {[%clk 0:02:54]} 4. e3 {[%clk 0:03:02]}  g6 {[%clk 0:02:53]} 5. Bb5 {[%clk 0:03:02]}  Bg7 {[%clk 0:02:54]} 6. Bxc6 {[%clk 0:03:02]}  dxc6 {[%clk 0:02:52]} 7. O-O {[%clk 0:03:02]}  O-O {[%clk 0:02:53]} 8. d3 {[%clk 0:03:03]}  b6 {[%clk 0:02:53]} 9. Nbd2 {[%clk 0:03:02]}  a5 {[%clk 0:02:49]} 10. a4 {[%clk 0:03:01]}  Qc7 {[%clk 0:02:48]} 11. Be5 {[%clk 0:03:00]}  Qb7 {[%clk 0:02:45]} 12. h3 {[%clk 0:03:00]}  Rd8 {[%clk 0:02:45]} 13. Qc1 {[%clk 0:03:00]}  Be6 {[%clk 0:02:39]} 14. Qb2 {[%clk 0:02:57]}  h6 {[%clk 0:02:38]} 15. Ne4 {[%clk 0:02:51]}  Ne8 {[%clk 0:02:20]} 16. Ned2 {[%clk 0:02:51]}  Nf6 {[%clk 0:02:20]} 17. e4 {[%clk 0:02:50]}  Nh5 {[%clk 0:02:04]} 18. Rfe1 {[%clk 0:02:46]}  Bxe5 {[%clk 0:02:03]} 19. Qxe5 {[%clk 0:02:39]}  Qb8 {[%clk 0:02:03]} 20. Nf1 {[%clk 0:02:21]}  Qxe5 {[%clk 0:01:42]} 21. Nxe5 {[%clk 0:02:22]}  Rac8 {[%clk 0:01:43]} 22. Kh2 {[%clk 0:02:13]}  Nf6 {[%clk 0:01:43]} 23. Ne3 {[%clk 0:02:07]}  Nd7 {[%clk 0:01:42]} 24. Nxd7 {[%clk 0:02:04]}  Rxd7 {[%clk 0:01:42]} 25. f4 {[%clk 0:02:03]}  f6 {[%clk 0:01:39]} 26. f5 {[%clk 0:01:56]}  Bf7 {[%clk 0:01:38]} 27. e5 {[%clk 0:01:44]}  fxe5 {[%clk 0:01:31]} 28. Ng4 {[%clk 0:01:42]}  Kg7 {[%clk 0:00:59]} 29. Nxe5 {[%clk 0:01:33]}  Rd6 {[%clk 0:00:58]} 30. fxg6 {[%clk 0:01:32]}  Bxg6 {[%clk 0:00:58]} 31. Nc4 {[%clk 0:01:33]}  Rf6 {[%clk 0:00:51]} 32. Rxe7+ {[%clk 0:01:31]}  Kf8 {[%clk 0:00:51]} 33. Rae1 {[%clk 0:01:22]}  Rf2 {[%clk 0:00:51]} 34. Nxb6 {[%clk 0:01:19]}  Rd8 {[%clk 0:00:45]} 35. R7e2 {[%clk 0:01:13]} 1-0


[Site "https://www.chess.com"]

[Event "Titled Tuesday Blitz October 31 Early 2023"]
[White "Kuzhylnyi, Oleksandr"]
[Black "Costachi, Mihnea"]
[WhiteFideId "34110500"]
[BlackFideId "1217518"]
[WhiteElo "2640"]
[BlackElo "2734"]
[Result "0-1"]
[Round "11"]
[TimeControl "180+1"]
[Date "2023.10.31"]
[WhiteClock "0:00:15"]
[BlackClock "0:00:57"]
[Board "34"]

1. b3 {[%clk 0:03:00]}  d5 {[%clk 0:02:56]} 2. Bb2 {[%clk 0:03:01]}  Nc6 {[%clk 0:02:56]} 3. e3 {[%clk 0:02:58]}  e5 {[%clk 0:02:55]} 4. Bb5 {[%clk 0:02:58]}  Bd6 {[%clk 0:02:55]} 5. Nf3 {[%clk 0:02:58]}  f6 {[%clk 0:02:52]} 6. d4 {[%clk 0:02:55]}  exd4 {[%clk 0:02:47]} 7. Nxd4 {[%clk 0:02:53]}  Ne7 {[%clk 0:02:47]} 8. Nxc6 {[%clk 0:02:49]}  bxc6 {[%clk 0:02:42]} 9. Bd3 {[%clk 0:02:47]}  O-O {[%clk 0:02:42]} 10. O-O {[%clk 0:02:46]}  Bf5 {[%clk 0:02:42]} 11. Nd2 {[%clk 0:02:41]}  Be5 {[%clk 0:02:41]} 12. Bd4 {[%clk 0:02:36]}  Bxd4 {[%clk 0:02:37]} 13. exd4 {[%clk 0:02:36]}  Bxd3 {[%clk 0:02:37]} 14. cxd3 {[%clk 0:02:36]}  Nf5 {[%clk 0:02:38]} 15. Qg4 {[%clk 0:02:32]}  g6 {[%clk 0:02:33]} 16. Rac1 {[%clk 0:02:29]}  Qd6 {[%clk 0:02:34]} 17. Rc5 {[%clk 0:02:25]}  a5 {[%clk 0:02:28]} 18. Rfc1 {[%clk 0:02:23]}  Ne7 {[%clk 0:02:24]} 19. a4 {[%clk 0:02:12]}  Ra6 {[%clk 0:02:20]} 20. Re1 {[%clk 0:02:10]}  Nf5 {[%clk 0:02:19]} 21. h4 {[%clk 0:02:05]}  Nh6 {[%clk 0:02:12]} 22. Qe6+ {[%clk 0:02:02]}  Kg7 {[%clk 0:02:08]} 23. Qe2 {[%clk 0:01:48]}  Nf5 {[%clk 0:02:07]} 24. Nf3 {[%clk 0:01:48]}  Rf7 {[%clk 0:01:52]} 25. Qc2 {[%clk 0:01:44]}  Re7 {[%clk 0:01:50]} 26. Rxe7+ {[%clk 0:01:42]}  Nxe7 {[%clk 0:01:46]} 27. Qc3 {[%clk 0:01:37]}  Qf4 {[%clk 0:01:37]} 28. Rxa5 {[%clk 0:01:33]}  Rxa5 {[%clk 0:01:36]} 29. Qxa5 {[%clk 0:01:34]}  Qc1+ {[%clk 0:01:36]} 30. Qe1 {[%clk 0:01:33]}  Qa3 {[%clk 0:01:35]} 31. Qc3 {[%clk 0:01:20]}  Kf7 {[%clk 0:01:31]} 32. a5 {[%clk 0:01:11]}  Ke6 {[%clk 0:01:31]} 33. Kh2 {[%clk 0:01:05]}  Kd7 {[%clk 0:01:20]} 34. g3 {[%clk 0:00:58]}  Nf5 {[%clk 0:01:16]} 35. Kg2 {[%clk 0:00:56]}  Nd6 {[%clk 0:01:13]} 36. Nd2 {[%clk 0:00:47]}  Nb5 {[%clk 0:01:08]} 37. Nb1 {[%clk 0:00:37]}  Qa2 {[%clk 0:01:04]} 38. Qe1 {[%clk 0:00:34]}  Nxd4 {[%clk 0:01:01]} 39. b4 {[%clk 0:00:23]}  Nc2 {[%clk 0:00:58]} 40. Nc3 {[%clk 0:00:15]}  Nxe1+ {[%clk 0:00:57]} 0-1


[Site "https://www.chess.com"]

[Event "Titled Tuesday Blitz October 31 Early 2023"]
[White "El_Matador12"]
[Black "Maximov, Dmitry"]
[BlackFideId "14105659"]
[WhiteElo "2558"]
[BlackElo "2724"]
[Result "1/2-1/2"]
[Round "11"]
[TimeControl "180+1"]
[Date "2023.10.31"]
[WhiteClock "0:00:13"]
[BlackClock "0:00:06"]
[Board "36"]

1. d4 {[%clk 0:02:45]}  Nf6 {[%clk 0:03:00]} 2. Bg5 {[%clk 0:02:45]}  c5 {[%clk 0:03:00]} 3. dxc5 {[%clk 0:02:45]}  e6 {[%clk 0:02:57]} 4. Nd2 {[%clk 0:02:43]}  Bxc5 {[%clk 0:02:57]} 5. e3 {[%clk 0:02:44]}  d5 {[%clk 0:02:56]} 6. Ngf3 {[%clk 0:02:44]}  Nc6 {[%clk 0:02:56]} 7. c4 {[%clk 0:02:44]}  O-O {[%clk 0:02:53]} 8. a3 {[%clk 0:02:45]}  a5 {[%clk 0:02:52]} 9. Be2 {[%clk 0:02:45]}  h6 {[%clk 0:02:52]} 10. Bh4 {[%clk 0:02:45]}  Be7 {[%clk 0:02:45]} 11. O-O {[%clk 0:02:44]}  d4 {[%clk 0:02:40]} 12. exd4 {[%clk 0:02:43]}  Nxd4 {[%clk 0:02:40]} 13. Nxd4 {[%clk 0:02:43]}  Qxd4 {[%clk 0:02:40]} 14. Nf3 {[%clk 0:02:18]}  Qxb2 {[%clk 0:02:40]} 15. Re1 {[%clk 0:02:12]}  Rd8 {[%clk 0:02:39]} 16. Qc1 {[%clk 0:02:07]}  Qxc1 {[%clk 0:02:38]} 17. Rexc1 {[%clk 0:02:08]}  Bd7 {[%clk 0:02:37]} 18. Ne5 {[%clk 0:02:07]}  Be8 {[%clk 0:02:34]} 19. Bf3 {[%clk 0:02:06]}  Rab8 {[%clk 0:02:34]} 20. Bg3 {[%clk 0:02:02]}  b6 {[%clk 0:02:26]} 21. Nc6 {[%clk 0:01:40]}  Bxc6 {[%clk 0:02:25]} 22. Bxc6 {[%clk 0:01:41]}  Rbc8 {[%clk 0:02:25]} 23. Bb7 {[%clk 0:01:41]}  Rc5 {[%clk 0:02:25]} 24. Rab1 {[%clk 0:01:38]}  Nd7 {[%clk 0:02:19]} 25. a4 {[%clk 0:01:32]}  h5 {[%clk 0:02:14]} 26. h3 {[%clk 0:01:30]}  h4 {[%clk 0:02:14]} 27. Bh2 {[%clk 0:01:30]}  f5 {[%clk 0:02:07]} 28. Kf1 {[%clk 0:01:22]}  Kf7 {[%clk 0:02:07]} 29. Ba6 {[%clk 0:01:21]}  g5 {[%clk 0:02:06]} 30. f3 {[%clk 0:01:09]}  Nf6 {[%clk 0:01:26]} 31. Rxb6 {[%clk 0:01:01]}  Rd2 {[%clk 0:01:26]} 32. Re1 {[%clk 0:00:36]}  g4 {[%clk 0:01:10]} 33. Rbxe6 {[%clk 0:00:34]}  Bd8 {[%clk 0:01:04]} 34. Bf4 {[%clk 0:00:34]}  Ra2 {[%clk 0:00:53]} 35. Bd6 {[%clk 0:00:29]}  Bb6 {[%clk 0:00:39]} 36. Bxc5 {[%clk 0:00:20]}  Bxc5 {[%clk 0:00:39]} 37. R6e2 {[%clk 0:00:19]}  Rxa4 {[%clk 0:00:38]} 38. Bb5 {[%clk 0:00:18]}  Ra3 {[%clk 0:00:35]} 39. fxg4 {[%clk 0:00:18]}  fxg4 {[%clk 0:00:35]} 40. Rd1 {[%clk 0:00:16]}  Nh5 {[%clk 0:00:30]} 41. Re5 {[%clk 0:00:12]}  Ng3+ {[%clk 0:00:28]} 42. Ke1 {[%clk 0:00:13]}  Bb4+ {[%clk 0:00:29]} 43. Kf2 {[%clk 0:00:13]}  Ra2+ {[%clk 0:00:29]} 44. Ke3 {[%clk 0:00:13]}  Rxg2 {[%clk 0:00:18]} 45. hxg4 {[%clk 0:00:12]}  h3 {[%clk 0:00:18]} 46. Bc6 {[%clk 0:00:11]}  Re2+ {[%clk 0:00:18]} 47. Kf4 {[%clk 0:00:11]}  Rxe5 {[%clk 0:00:14]} 48. Kxe5 {[%clk 0:00:12]}  h2 {[%clk 0:00:14]} 49. Bh1 {[%clk 0:00:12]}  a4 {[%clk 0:00:13]} 50. Kd5 {[%clk 0:00:11]}  a3 {[%clk 0:00:13]} 51. c5 {[%clk 0:00:11]}  a2 {[%clk 0:00:13]} 52. c6 {[%clk 0:00:12]}  Ba5 {[%clk 0:00:13]} 53. Kd6 {[%clk 0:00:12]}  Bb4+ {[%clk 0:00:11]} 54. Kd7 {[%clk 0:00:13]}  Ba5 {[%clk 0:00:04]} 55. c7 {[%clk 0:00:12]}  Bxc7 {[%clk 0:00:05]} 56. Kxc7 {[%clk 0:00:13]}  Kf6 {[%clk 0:00:05]} 57. Bf3 {[%clk 0:00:13]}  Kg5 {[%clk 0:00:06]} 58. Bh1 {[%clk 0:00:12]}  Kxg4 {[%clk 0:00:06]} 59. Kc6 {[%clk 0:00:13]}  Nxh1 {[%clk 0:00:05]} 60. Rxh1 {[%clk 0:00:13]}  Kg3 {[%clk 0:00:06]} 61. Ra1 {[%clk 0:00:13]}  Kh3 {[%clk 0:00:06]} 62. Kc5 {[%clk 0:00:13]}  Kg2 {[%clk 0:00:04]} 63. Rxa2+ {[%clk 0:00:13]}  Kg1 {[%clk 0:00:04]} 64. Ra1+ {[%clk 0:00:13]}  Kg2 {[%clk 0:00:05]} 65. Kd4 {[%clk 0:00:13]}  h1=Q {[%clk 0:00:05]} 66. Rxh1 {[%clk 0:00:13]}  Kxh1 {[%clk 0:00:06]} 1/2-1/2


[Site "https://www.chess.com"]

[Event "Titled Tuesday Blitz October 31 Early 2023"]
[White "Djokic, Mihailo"]
[Black "Santos Flores, Alberto"]
[WhiteFideId "976440"]
[BlackFideId "3601234"]
[WhiteElo "2709"]
[BlackElo "2485"]
[Result "1-0"]
[Round "11"]
[TimeControl "180+1"]
[Date "2023.10.31"]
[WhiteClock "0:01:47"]
[BlackClock "0:00:06"]
[Board "38"]

1. e4 {[%clk 0:02:55]}  e6 {[%clk 0:02:59]} 2. d4 {[%clk 0:02:55]}  d5 {[%clk 0:03:00]} 3. Nc3 {[%clk 0:02:56]}  Nf6 {[%clk 0:02:59]} 4. Bg5 {[%clk 0:02:56]}  Bb4 {[%clk 0:02:58]} 5. e5 {[%clk 0:02:57]}  h6 {[%clk 0:02:58]} 6. Bh4 {[%clk 0:02:57]}  g5 {[%clk 0:02:55]} 7. Bg3 {[%clk 0:02:58]}  Ne4 {[%clk 0:02:55]} 8. Ne2 {[%clk 0:02:59]}  c5 {[%clk 0:02:48]} 9. a3 {[%clk 0:02:58]}  Bxc3+ {[%clk 0:02:47]} 10. Nxc3 {[%clk 0:02:59]}  Nxg3 {[%clk 0:02:43]} 11. hxg3 {[%clk 0:02:58]}  a6 {[%clk 0:02:30]} 12. Qd2 {[%clk 0:02:46]}  cxd4 {[%clk 0:02:26]} 13. Ne2 {[%clk 0:02:45]}  Nc6 {[%clk 0:02:25]} 14. f4 {[%clk 0:02:46]}  gxf4 {[%clk 0:02:24]} 15. gxf4 {[%clk 0:02:46]}  Bd7 {[%clk 0:02:18]} 16. Nxd4 {[%clk 0:02:44]}  Nxd4 {[%clk 0:02:15]} 17. Qxd4 {[%clk 0:02:44]}  Qc7 {[%clk 0:02:15]} 18. c3 {[%clk 0:02:44]}  O-O-O {[%clk 0:02:15]} 19. b4 {[%clk 0:02:44]}  Kb8 {[%clk 0:02:14]} 20. a4 {[%clk 0:02:42]}  f6 {[%clk 0:01:45]} 21. exf6 {[%clk 0:02:41]}  e5 {[%clk 0:01:45]} 22. fxe5 {[%clk 0:02:40]}  Rde8 {[%clk 0:01:45]} 23. O-O-O {[%clk 0:02:33]}  Rxe5 {[%clk 0:01:41]} 24. Bd3 {[%clk 0:02:32]}  Bxa4 {[%clk 0:01:39]} 25. Rde1 {[%clk 0:02:31]}  Rxe1+ {[%clk 0:01:37]} 26. Rxe1 {[%clk 0:02:31]}  Rf8 {[%clk 0:01:35]} 27. Re7 {[%clk 0:02:26]}  Qc6 {[%clk 0:01:03]} 28. f7 {[%clk 0:02:15]}  Qd6 {[%clk 0:01:02]} 29. Qc5 {[%clk 0:02:07]}  Qxc5 {[%clk 0:00:53]} 30. bxc5 {[%clk 0:02:07]}  Kc8 {[%clk 0:00:43]} 31. Bg6 {[%clk 0:02:03]}  Kd8 {[%clk 0:00:29]} 32. Rxb7 {[%clk 0:02:03]}  Bd7 {[%clk 0:00:30]} 33. Kd2 {[%clk 0:01:55]}  a5 {[%clk 0:00:27]} 34. Ke3 {[%clk 0:01:54]}  a4 {[%clk 0:00:27]} 35. Kd4 {[%clk 0:01:55]}  Bc6 {[%clk 0:00:18]} 36. Ra7 {[%clk 0:01:53]}  Kc8 {[%clk 0:00:15]} 37. Ke5 {[%clk 0:01:53]}  Kb8 {[%clk 0:00:13]} 38. Ra6 {[%clk 0:01:51]}  Kb7 {[%clk 0:00:13]} 39. Ra5 {[%clk 0:01:47]}  Kc7 {[%clk 0:00:13]} 40. Kf6 {[%clk 0:01:47]}  d4 {[%clk 0:00:09]} 41. cxd4 {[%clk 0:01:47]}  Bd5 {[%clk 0:00:10]} 42. Ra7+ {[%clk 0:01:47]}  Kb8 {[%clk 0:00:06]} 43. Rxa4 {[%clk 0:01:47]} 1-0


[Site "https://www.chess.com"]

[Event "Titled Tuesday Blitz October 31 Early 2023"]
[White "MMAHDI2013"]
[Black "Atakhan, Abtin"]
[BlackFideId "22502203"]
[WhiteElo "2474"]
[BlackElo "2699"]
[Result "0-1"]
[Round "11"]
[TimeControl "180+1"]
[Date "2023.10.31"]
[WhiteClock "0:00:07"]
[BlackClock "0:01:04"]
[Board "40"]

1. c4 {[%clk 0:03:00]}  Nf6 {[%clk 0:02:57]} 2. Nf3 {[%clk 0:03:00]}  c5 {[%clk 0:02:57]} 3. b3 {[%clk 0:03:00]}  g6 {[%clk 0:02:56]} 4. Bb2 {[%clk 0:03:00]}  Bg7 {[%clk 0:02:57]} 5. g3 {[%clk 0:03:01]}  b6 {[%clk 0:02:52]} 6. Bg2 {[%clk 0:03:01]}  Bb7 {[%clk 0:02:53]} 7. O-O {[%clk 0:03:02]}  O-O {[%clk 0:02:54]} 8. d4 {[%clk 0:03:01]}  cxd4 {[%clk 0:02:54]} 9. Qxd4 {[%clk 0:03:01]}  d6 {[%clk 0:02:54]} 10. Nc3 {[%clk 0:03:00]}  Nbd7 {[%clk 0:02:54]} 11. Rac1 {[%clk 0:03:01]}  Rc8 {[%clk 0:02:53]} 12. Rfd1 {[%clk 0:03:00]}  Rc5 {[%clk 0:02:51]} 13. Ba3 {[%clk 0:02:54]}  Ne4 {[%clk 0:02:48]} 14. Qe3 {[%clk 0:02:31]}  Nxc3 {[%clk 0:02:26]} 15. Rxc3 {[%clk 0:02:19]}  Ra5 {[%clk 0:02:14]} 16. b4 {[%clk 0:01:48]}  Bxf3 {[%clk 0:02:01]} 17. Bxf3 {[%clk 0:01:30]}  Ra4 {[%clk 0:02:00]} 18. Rb3 {[%clk 0:01:10]}  Ne5 {[%clk 0:01:59]} 19. Qe4 {[%clk 0:00:57]}  Qc7 {[%clk 0:01:53]} 20. Rc1 {[%clk 0:00:52]}  Rc8 {[%clk 0:01:49]} 21. Kg2 {[%clk 0:00:41]}  e6 {[%clk 0:01:43]} 22. h4 {[%clk 0:00:36]}  Nxc4 {[%clk 0:01:41]} 23. Qd3 {[%clk 0:00:21]}  b5 {[%clk 0:01:30]} 24. e3 {[%clk 0:00:17]}  Qd8 {[%clk 0:01:20]} 25. Rd1 {[%clk 0:00:16]}  d5 {[%clk 0:01:15]} 26. Qe2 {[%clk 0:00:16]}  Rxa3 {[%clk 0:01:15]} 27. Rbb1 {[%clk 0:00:12]}  Rc3 {[%clk 0:01:11]} 28. h5 {[%clk 0:00:12]}  Ne5 {[%clk 0:01:11]} 29. Qxb5 {[%clk 0:00:11]}  Rc2 {[%clk 0:01:08]} 30. Be2 {[%clk 0:00:08]}  Rb8 {[%clk 0:01:05]} 31. Qa6 {[%clk 0:00:08]}  Rb6 {[%clk 0:01:05]} 32. Qxa7 {[%clk 0:00:09]}  Rxe2 {[%clk 0:01:06]} 33. Rdc1 {[%clk 0:00:09]}  Nc6 {[%clk 0:01:06]} 34. Qa4 {[%clk 0:00:08]}  Qf6 {[%clk 0:01:05]} 35. Rc2 {[%clk 0:00:06]}  Qxf2+ {[%clk 0:01:04]} 36. Kh3 {[%clk 0:00:06]}  Qh2+ {[%clk 0:01:03]} 37. Kg4 {[%clk 0:00:07]}  Qxh5+ {[%clk 0:01:04]} 38. Kf4 {[%clk 0:00:07]}  Be5# {[%clk 0:01:04]} 0-1


[Site "https://www.chess.com"]

[Event "Titled Tuesday Blitz October 31 Early 2023"]
[White "Zhigalko, Sergei"]
[Black "Omelja, Artem"]
[WhiteFideId "13502956"]
[BlackFideId "14119846"]
[WhiteElo "2915"]
[BlackElo "2578"]
[Result "1-0"]
[Round "11"]
[TimeControl "180+1"]
[Date "2023.10.31"]
[WhiteClock "0:00:52"]
[BlackClock "0:00:49"]
[Board "45"]

1. e4 {[%clk 0:03:00]}  e5 {[%clk 0:02:58]} 2. Nf3 {[%clk 0:03:00]}  Nc6 {[%clk 0:02:56]} 3. Bc4 {[%clk 0:03:00]}  Bc5 {[%clk 0:02:55]} 4. b4 {[%clk 0:03:00]}  Bxb4 {[%clk 0:02:53]} 5. c3 {[%clk 0:03:01]}  Bc5 {[%clk 0:02:53]} 6. d4 {[%clk 0:03:01]}  exd4 {[%clk 0:02:54]} 7. O-O {[%clk 0:03:01]}  Nf6 {[%clk 0:02:32]} 8. cxd4 {[%clk 0:02:51]}  Bb6 {[%clk 0:02:27]} 9. Ba3 {[%clk 0:02:46]}  d5 {[%clk 0:02:01]} 10. exd5 {[%clk 0:02:29]}  Nxd5 {[%clk 0:02:02]} 11. Nc3 {[%clk 0:00:54]}  Nxc3 {[%clk 0:01:19]} 12. Re1+ {[%clk 0:00:53]}  Be6 {[%clk 0:01:12]} 13. Qb3 {[%clk 0:00:54]}  Na5 {[%clk 0:01:01]} 14. Qxc3 {[%clk 0:00:51]}  Nxc4 {[%clk 0:01:00]} 15. Qxc4 {[%clk 0:00:52]}  c6 {[%clk 0:00:49]} 16. Rxe6+ {[%clk 0:00:52]} 1-0


[Site "https://www.chess.com"]

[Event "Titled Tuesday Blitz October 31 Early 2023"]
[White "Kozak, Antoni"]
[Black "Goltseva, Ekaterina"]
[WhiteFideId "21832030"]
[BlackFideId "24173770"]
[WhiteElo "2809"]
[BlackElo "2546"]
[Result "0-1"]
[Round "11"]
[TimeControl "180+1"]
[Date "2023.10.31"]
[WhiteClock "0:00:04"]
[BlackClock "0:00:21"]
[Board "47"]

1. e4 {[%clk 0:03:00]}  e6 {[%clk 0:02:52]} 2. d4 {[%clk 0:02:44]}  d5 {[%clk 0:02:53]} 3. f3 {[%clk 0:02:43]}  dxe4 {[%clk 0:02:50]} 4. Nc3 {[%clk 0:02:43]}  c5 {[%clk 0:02:47]} 5. d5 {[%clk 0:02:35]}  exd5 {[%clk 0:02:40]} 6. Nxd5 {[%clk 0:02:35]}  Nf6 {[%clk 0:02:33]} 7. fxe4 {[%clk 0:02:31]}  Nxd5 {[%clk 0:02:24]} 8. exd5 {[%clk 0:02:23]}  Qh4+ {[%clk 0:02:16]} 9. g3 {[%clk 0:02:23]}  Qe4+ {[%clk 0:02:13]} 10. Qe2 {[%clk 0:02:23]}  Bf5 {[%clk 0:02:05]} 11. c4 {[%clk 0:02:13]}  Bd6 {[%clk 0:01:54]} 12. Nf3 {[%clk 0:01:59]}  O-O {[%clk 0:01:18]} 13. Qxe4 {[%clk 0:01:59]}  Bxe4 {[%clk 0:01:19]} 14. Kf2 {[%clk 0:01:59]}  Nd7 {[%clk 0:01:14]} 15. Bg2 {[%clk 0:01:49]}  Rfe8 {[%clk 0:00:46]} 16. Bd2 {[%clk 0:01:39]}  Bd3 {[%clk 0:00:43]} 17. b3 {[%clk 0:01:16]}  Re2+ {[%clk 0:00:41]} 18. Kg1 {[%clk 0:01:16]}  Ne5 {[%clk 0:00:35]} 19. Nxe5 {[%clk 0:01:14]}  Bxe5 {[%clk 0:00:33]} 20. Be1 {[%clk 0:00:04]}  Bd4+ {[%clk 0:00:23]} 21. Kf1 {[%clk 0:00:04]}  Rxa2# {[%clk 0:00:21]} 0-1


[Site "https://www.chess.com"]